bitfinex/quotes_BTCUSD_20211001
["timestamp","ask_amount","ask_price","bid_price","bid_amount"]
[1633095356082,0.30994997,47269.0,47260.0,0.13829029]
[1633095356481,0.30994997,47269.0,47268.0,0.18348249]
[1633095356682,0.30994997,47269.0,47257.0,0.08534683]
[1633095356683,0.39711722,47269.0,47257.0,0.08534683]
[1633095356885,0.17988661,47268.0,47257.0,0.08534683]
[1633095357142,0.39721393,47269.0,47258.0,0.0005301]
[1633095357544,9.671e-05,47269.0,47259.0,0.17663086]
[1633095357742,9.671e-05,47269.0,47268.0,0.17869252]
[1633095358742,0.07918195,47272.0,47268.0,0.17869252]
[1633095359343,0.00126436,47275.0,47268.0,0.17869252]
[1633095359945,0.00126142,47277.0,47268.0,0.17869252]
[1633095360149,0.81805051,47281.0,47268.0,0.17922262]
[1633095360347,0.81805051,47281.0,47273.0,0.08616448]
[1633095360348,0.37948912,47281.0,47273.0,0.08616448]
[1633095360551,0.37948912,47281.0,47280.0,0.22342298]
[1633095360748,0.37948912,47281.0,47274.0,0.22842751]
[1633095360952,0.37948912,47281.0,47272.0,0.27173479]
[1633095361151,7.253e-05,47275.0,47273.0,0.20767596]
[1633095361350,7.253e-05,47275.0,47270.0,0.1301175]
[1633095361548,6.044e-05,47274.0,47271.0,0.09645108]
[1633095361750,6.044e-05,47274.0,47271.0,0.49415846]
[1633095361948,6.044e-05,47274.0,47272.0,0.31734]
[1633095362455,6.044e-05,47274.0,47273.0,2.29547059]
[1633095362651,6.044e-05,47274.0,47273.0,2.31460069]
[1633095362851,6.044e-05,47274.0,47273.0,2.61460069]
[1633095363051,6.044e-05,47274.0,47273.0,3.36460069]
[1633095363252,6.044e-05,47274.0,47273.0,3.47902548]
[1633095363656,4.4e-07,47274.0,47273.0,2.72902548]
[1633095364156,0.00076679,47293.0,47273.0,2.72902548]
[1633095364157,0.00076679,47293.0,47292.0,0.0025034]
[1633095364354,0.00076679,47293.0,47292.0,0.92390153]
[1633095364552,0.00099637,47293.0,47292.0,2.36354163]
[1633095364754,0.00099637,47293.0,47292.0,2.60785022]
[1633095364952,0.00099637,47293.0,47292.0,3.11166262]
[1633095365355,0.00099637,47293.0,47292.0,3.11361782]
[1633095366353,0.00099637,47293.0,47292.0,3.31361782]
[1633095367955,0.00099637,47293.0,47292.0,0.92338542]
[1633095368157,0.00099637,47293.0,47292.0,0.80138289]
[1633095368357,0.00099637,47293.0,47292.0,0.48427289]
[1633095368554,0.00099637,47293.0,47292.0,0.26486379]
[1633095368954,0.1964962,47303.0,47292.0,0.26486379]
[1633095369156,0.02562681,47304.0,47292.0,0.26486379]
[1633095369955,0.11666311,47304.0,47300.0,0.21986131]
[1633095370358,9.664e-05,47301.0,47300.0,0.21986131]
[1633095370557,9.664e-05,47301.0,47300.0,0.2218126]
[1633095371762,9.664e-05,47301.0,47300.0,0.00195129]
[1633095372763,9.664e-05,47301.0,47300.0,0.22345737]
[1633095381268,9.664e-05,47301.0,47300.0,0.20345737]
[1633095381577,0.15688912,47297.0,47283.0,1.0561301]
[1633095381770,0.00128333,47295.0,47282.0,2.13731443]
[1633095382569,0.093345,47292.0,47290.0,0.19642852]
[1633095383170,0.1801117,47293.0,47290.0,0.19642852]
[1633095383370,0.36334121,47294.0,47290.0,0.19642852]
[1633095383569,0.31854833,47295.0,47290.0,0.19642852]
[1633095383772,0.00128333,47295.0,47290.0,0.19642852]
[1633095383972,0.15688912,47297.0,47290.0,0.19642852]
[1633095384174,0.18231834,47296.0,47290.0,0.19642852]
[1633095384370,0.15688912,47297.0,47290.0,0.19642852]
[1633095384571,0.18408493,47296.0,47290.0,0.19642852]
[1633095385171,0.18535017,47296.0,47290.0,0.19642852]
[1633095385572,0.09589656,47295.0,47290.0,0.19642852]
[1633095386173,0.00126524,47296.0,47290.0,0.19642852]
[1633095386572,0.15688912,47297.0,47290.0,0.19642852]
[1633095387174,0.18465297,47296.0,47290.0,0.19642852]
[1633095388373,0.17896019,47296.0,47290.0,0.51362052]
[1633095388979,0.17896019,47296.0,47293.0,2.64805589]
[1633095389178,0.15688912,47297.0,47293.0,2.64805589]
[1633095389382,0.15688912,47297.0,47293.0,2.74504322]
[1633095389575,0.17925459,47296.0,47293.0,2.85951023]
[1633095389776,0.18138631,47296.0,47293.0,2.85951023]
[1633095390176,0.15688912,47297.0,47293.0,2.85951023]
[1633095390376,0.336251,47297.0,47293.0,2.85951023]
[1633095390775,0.3361216,47297.0,47293.0,2.84951023]
[1633095390975,0.3351543,47297.0,47293.0,2.84951023]
[1633095391376,0.15688912,47297.0,47293.0,2.84951023]
[1633095391581,0.15688912,47297.0,47290.0,0.19642852]
[1633095391778,0.00120784,47295.0,47290.0,0.19642852]
[1633095392176,0.27847712,47295.0,47290.0,0.19642852]
[1633095392776,0.31844884,47295.0,47290.0,0.19642852]
[1633095392977,0.00120784,47295.0,47290.0,0.19642852]
[1633095395179,0.15688912,47297.0,47290.0,0.19642852]
[1633095395379,0.15688912,47297.0,47292.0,0.211435]
[1633095395576,0.15688912,47297.0,47292.0,0.42289708]
[1633095395976,0.15688912,47297.0,47292.0,0.42420591]
[1633095396180,0.15688912,47297.0,47292.0,0.00130883]
[1633095396381,0.00129165,47295.0,47292.0,0.00130883]
[1633095397577,0.32594706,47295.0,47292.0,0.00130883]
[1633095398277,0.15318077,47297.0,47292.0,0.00130883]
[1633095399077,0.42357724,47297.0,47292.0,0.00130883]
[1633095399486,0.00123032,47293.0,47292.0,0.00130883]
[1633095400678,0.19272141,47293.0,47292.0,0.00130883]
[1633095401883,0.0186,47295.0,47292.0,0.00130883]
[1633095402080,0.18040895,47294.0,47292.0,0.00130883]
[1633095402679,0.0186,47295.0,47292.0,0.00130883]
[1633095403282,0.335843,47295.0,47292.0,0.00130883]
[1633095404285,0.335843,47295.0,47292.0,0.18750912]
[1633095404689,0.0186,47295.0,47292.0,0.18750912]
[1633095405153,0.00128777,47296.0,47292.0,0.18750912]
[1633095407954,0.00128777,47296.0,47292.0,0.00130883]
[1633095408161,0.0012855,47293.0,47292.0,0.00130883]
[1633095409365,0.42104072,47293.0,47292.0,0.00130883]
[1633095409563,0.43964072,47293.0,47292.0,0.00117795]
[1633095410364,0.43964072,47293.0,47292.0,0.00057697]
[1633095410561,0.50080289,47293.0,47292.0,0.00057697]
[1633095410758,0.50078077,47293.0,47292.0,0.00057697]
[1633095411760,0.43964072,47293.0,47292.0,0.00057697]
[1633095411959,0.50070826,47293.0,47292.0,0.00057697]
[1633095412557,0.42373665,47293.0,47292.0,0.00057697]
[1633095414162,0.48478436,47293.0,47292.0,0.00057697]
[1633095415161,0.42373665,47293.0,47292.0,0.00057697]
[1633095415569,0.48476106,47293.0,47292.0,0.00057697]
[1633095415764,0.42373665,47293.0,47292.0,0.00057697]
[1633095417566,0.42373665,47293.0,47292.0,0.00018689]
[1633095417764,0.48467504,47293.0,47292.0,0.00018689]
[1633095418566,0.42373665,47293.0,47292.0,0.00018689]
[1633095418964,0.2430855,47293.0,47292.0,0.00018689]
[1633095419563,0.42614546,47293.0,47292.0,0.00018689]
[1633095420364,0.2430855,47293.0,47292.0,0.00018689]
[1633095421565,0.2430855,47293.0,47282.0,2.13731443]
[1633095421766,0.00121528,47283.0,47282.0,2.13731443]
[1633095421968,0.31857228,47283.0,47282.0,2.13731443]
[1633095422168,0.49814732,47283.0,47282.0,2.1374232]
[1633095422369,0.31857228,47283.0,47282.0,2.1374232]
[1633095422568,0.49740605,47283.0,47282.0,2.1374232]
[1633095423773,0.31857228,47283.0,47282.0,2.1374232]
[1633095425376,1.83784254,47282.0,47281.0,0.0119321]
[1633095425575,1.14532649,47282.0,47281.0,0.0119321]
[1633095426169,1.15165628,47282.0,47281.0,0.0119321]
[1633095426371,1.37239754,47282.0,47281.0,0.0119321]
[1633095426572,0.87239754,47282.0,47281.0,0.0119321]
[1633095427173,0.65165628,47282.0,47281.0,0.0119321]
[1633095428972,0.61616483,47282.0,47281.0,0.0119321]
[1633095430577,0.43579321,47282.0,47281.0,0.0119321]
[1633095430779,0.41465419,47282.0,47281.0,0.0119321]
[1633095430978,0.41390939,47282.0,47281.0,0.0119321]
[1633095431181,0.41731452,47282.0,47281.0,0.0119321]
[1633095431376,0.41572137,47282.0,47281.0,0.0119321]
[1633095431774,0.41472486,47282.0,47281.0,0.0119321]
[1633095432180,0.41753437,47282.0,47281.0,0.0119321]
[1633095432378,0.4095823,47282.0,47281.0,0.0119321]
[1633095432578,0.41748957,47282.0,47281.0,0.0119321]
[1633095432777,0.4095823,47282.0,47281.0,0.0119321]
[1633095433578,0.0934527,47269.0,47267.0,0.48173611]
[1633095433781,0.0934527,47269.0,47262.0,0.3179291]
[1633095433782,0.2116071,47269.0,47262.0,0.3179291]
[1633095433978,0.2116071,47269.0,47268.0,0.00016925]
[1633095434976,0.2116071,47269.0,47268.0,0.08112883]
[1633095436978,0.2116071,47269.0,47268.0,0.07392883]
[1633095437178,0.2116071,47269.0,47267.0,0.21572226]
[1633095437386,0.0119336,47267.0,47258.0,0.06122774]
[1633095437583,0.00125175,47260.0,47256.0,0.06124782]
[1633095437782,0.00125175,47260.0,47252.0,0.00022]
[1633095437980,0.00125175,47260.0,47259.0,0.00010883]
[1633095438182,0.42845052,47260.0,47259.0,0.00010883]
[1633095438386,0.80503237,47260.0,47259.0,0.00010883]
[1633095438986,1.30503237,47260.0,47259.0,0.00010883]
[1633095439384,1.72841237,47260.0,47259.0,0.00010883]
[1633095439782,1.72841237,47260.0,47252.0,0.00022]
[1633095440181,1.72841237,47260.0,47255.0,0.000898]
[1633095441188,0.21168382,47258.0,47255.0,0.000898]
[1633095441384,0.18204078,47257.0,47252.0,0.0850651]
[1633095441590,0.18204078,47257.0,47251.0,0.00044]
[1633095443384,0.35556325,47252.0,47251.0,0.00044]
[1633095443584,0.21168194,47253.0,47251.0,0.00044]
[1633095443785,0.18276242,47252.0,47251.0,0.00053674]
[1633095444045,0.18382021,47252.0,47251.0,0.00053674]
[1633095444386,0.21168194,47253.0,47251.0,0.00053674]
[1633095444789,0.21168194,47253.0,47252.0,8.465e-05]
[1633095444987,0.21293058,47253.0,47252.0,8.465e-05]
[1633095445188,0.72733868,47253.0,47252.0,8.465e-05]
[1633095445388,0.21168194,47253.0,47252.0,8.465e-05]
[1633095446189,0.40087882,47253.0,47252.0,8.465e-05]
[1633095448994,0.21168194,47253.0,47252.0,8.465e-05]
[1633095449794,0.40404445,47253.0,47252.0,8.465e-05]
[1633095450053,0.21168194,47253.0,47252.0,8.465e-05]
[1633095453083,0.39846935,47253.0,47252.0,8.465e-05]
[1633095455006,0.21168194,47253.0,47252.0,8.465e-05]
[1633095455204,0.39472677,47253.0,47252.0,8.465e-05]
[1633095456605,0.21168194,47253.0,47252.0,8.465e-05]
[1633095457008,0.39115699,47253.0,47252.0,8.465e-05]
[1633095457607,0.21168194,47253.0,47252.0,8.465e-05]
[1633095457809,0.39308353,47253.0,47252.0,8.465e-05]
[1633095458006,0.21168194,47253.0,47252.0,8.465e-05]
[1633095458208,0.39273169,47253.0,47252.0,8.465e-05]
[1633095458409,0.21168194,47253.0,47252.0,8.465e-05]
[1633095459815,0.00750536,47249.0,47248.0,0.00044]
[1633095460410,0.3544089,47249.0,47248.0,0.00044]
[1633095460608,0.00750536,47249.0,47248.0,0.00044]
[1633095462214,0.00750536,47249.0,47248.0,1.42364]
[1633095462418,0.21168194,47253.0,47248.0,0.00168996]
[1633095462613,0.21168194,47253.0,47252.0,0.00124504]
[1633095463614,0.02751082,47253.0,47252.0,0.00124504]
[1633095463813,0.02751082,47253.0,47251.0,0.11464154]
[1633095464213,0.02751082,47253.0,47251.0,0.17589799]
[1633095464413,0.02751082,47253.0,47251.0,0.11464154]
[1633095465080,0.02751082,47253.0,47251.0,0.17589792]
[1633095465414,0.02751082,47253.0,47252.0,0.21369668]
[1633095465817,0.02751082,47253.0,47251.0,0.17591319]
[1633095466218,0.02751082,47253.0,47252.0,0.21379679]
[1633095466418,0.02751082,47253.0,47252.0,0.15249629]
[1633095466617,0.02751082,47253.0,47252.0,0.21379715]
[1633095467218,0.02751082,47253.0,47252.0,0.15263359]
[1633095467219,0.21372244,47253.0,47252.0,0.15263359]
[1633095467422,0.21372244,47253.0,47250.0,0.15263461]
[1633095467818,0.21372244,47253.0,47250.0,0.36432461]
[1633095468083,0.21372244,47253.0,47252.0,0.06135667]
[1633095468220,0.53126244,47253.0,47252.0,0.06135667]
[1633095468820,0.53126244,47253.0,47251.0,0.06135929]
[1633095469021,0.53126244,47253.0,47251.0,0.21400177]
[1633095469219,0.34505082,47253.0,47251.0,0.21400177]
[1633095470024,0.34505082,47253.0,47252.0,0.06135783]
[1633095470225,0.34505082,47253.0,47251.0,0.06135694]
[1633095470420,0.34505082,47253.0,47251.0,0.21399302]
[1633095470628,0.18460238,47252.0,47251.0,0.21399302]
[1633095470821,0.18460238,47252.0,47251.0,0.06135694]
[1633095471084,0.18460238,47252.0,47250.0,0.06135767]
[1633095471085,0.25498063,47252.0,47250.0,0.06135767]
[1633095471224,0.49876183,47251.0,47250.0,0.06135259]
[1633095471424,0.49876183,47251.0,47250.0,0.21397812]
[1633095471621,0.49876183,47251.0,47250.0,0.21378829]
[1633095472223,0.49876183,47251.0,47250.0,0.21377536]
[1633095473225,0.49876183,47251.0,47249.0,0.15134608]
[1633095473425,0.18347242,47250.0,47249.0,0.15134608]
[1633095473626,0.317558,47251.0,47249.0,0.30082133]
[1633095473824,0.317558,47251.0,47249.0,0.15134608]
[1633095474225,0.317558,47251.0,47249.0,0.15134314]
[1633095474828,0.317558,47251.0,47250.0,0.14871494]
[1633095475027,0.317558,47251.0,47249.0,0.09]
[1633095475433,0.317558,47251.0,47250.0,0.14871154]
[1633095475630,0.317558,47251.0,47249.0,0.09]
[1633095475829,0.317558,47251.0,47250.0,0.14871148]
[1633095476031,0.317558,47251.0,47249.0,0.09]
[1633095476229,0.3188524,47251.0,47249.0,0.09]
[1633095477834,0.317558,47251.0,47249.0,0.09]
[1633095478041,0.317558,47251.0,47249.0,0.17464188]
[1633095478436,0.317558,47251.0,47249.0,0.16964188]
[1633095478634,0.317558,47251.0,47249.0,0.085]
[1633095480236,0.34503382,47253.0,47250.0,0.0012786]
[1633095480436,0.02751082,47253.0,47250.0,0.0012786]
[1633095481035,0.02751082,47253.0,47249.0,0.085]
[1633095481435,0.317526,47252.0,47250.0,0.07046617]
[1633095481836,0.02751082,47253.0,47250.0,0.28214317]
[1633095482038,0.423365,47257.0,47251.0,0.00120131]
[1633095482237,0.42341,47264.0,47256.0,0.23266645]
[1633095482537,0.3175,47260.0,47256.0,0.23266645]
[1633095482735,0.30487187,47260.0,47256.0,0.23266645]
[1633095483139,0.2232,47258.0,47255.0,2.09933178]
[1633095483342,0.00123308,47258.0,47249.0,0.085]
[1633095483537,0.317535,47257.0,47249.0,0.085]
[1633095483738,0.00126698,47260.0,47249.0,0.085]
[1633095484136,0.00126698,47260.0,47255.0,0.21297004]
[1633095484338,0.09804287,47261.0,47255.0,0.21297004]
[1633095484737,0.41554687,47261.0,47255.0,0.21297004]
[1633095485136,0.35423105,47258.0,47255.0,0.21297004]
[1633095485540,0.0119336,47267.0,47257.0,0.00120059]
[1633095485743,0.0119336,47267.0,47265.0,0.0012617]
[1633095486142,0.00014508,47266.0,47265.0,0.0012617]
[1633095486342,0.00014508,47266.0,47259.0,0.00122742]
[1633095486540,0.38609327,47266.0,47259.0,0.00122742]
[1633095486739,0.38594819,47266.0,47259.0,0.00122742]
[1633095487539,0.31458159,47266.0,47259.0,0.00122742]
[1633095487938,0.31458159,47266.0,47263.0,0.23432223]
[1633095488138,0.0119336,47267.0,47263.0,0.23432223]
[1633095488339,0.0001209,47264.0,47263.0,0.23432223]
[1633095490740,0.0001209,47264.0,47263.0,0.22932223]
[1633095491945,0.0001209,47264.0,47258.0,0.09570166]
[1633095492141,0.0001209,47264.0,47256.0,0.19802444]
[1633095492342,6.046e-05,47259.0,47256.0,0.19802444]
[1633095492941,6.046e-05,47259.0,47257.0,0.22078266]
[1633095493143,6.046e-05,47259.0,47257.0,0.22131276]
[1633095493343,6.046e-05,47259.0,47257.0,0.22078266]
[1633095496147,6.046e-05,47259.0,47258.0,0.27700305]
[1633095496352,6.046e-05,47259.0,47257.0,0.22078266]
[1633095497748,6.046e-05,47259.0,47257.0,0.22131276]
[1633095498214,6.046e-05,47259.0,47257.0,0.22231486]
[1633095503418,6.046e-05,47259.0,47258.0,0.08922745]
[1633095504819,0.423323,47265.0,47258.0,0.08922745]
[1633095505423,0.09860155,47267.0,47258.0,0.08922745]
[1633095505620,0.317455,47266.0,47258.0,0.08922745]
[1633095507020,0.3935573,47266.0,47258.0,0.08922745]
[1633095507219,0.3935573,47266.0,47258.0,0.07622745]
[1633095507419,0.3935573,47266.0,47265.0,0.20289788]
[1633095507620,0.317455,47266.0,47265.0,0.20289788]
[1633095507819,0.31753963,47266.0,47265.0,0.20289788]
[1633095509822,0.31753963,47266.0,47265.0,2.23961187]
[1633095510422,0.31753963,47266.0,47265.0,2.03671399]
[1633095510624,0.31753963,47266.0,47257.0,0.0015322]
[1633095510822,8.463e-05,47266.0,47257.0,0.0015322]
[1633095511222,8.463e-05,47266.0,47257.0,0.06284851]
[1633095511421,8.463e-05,47266.0,47258.0,0.18239063]
[1633095511624,8.463e-05,47266.0,47259.0,0.07307621]
[1633095512523,0.317454,47265.0,47259.0,0.07307621]
[1633095512723,8.463e-05,47266.0,47259.0,0.07307621]
[1633095512923,0.60689053,47271.0,47259.0,0.07307621]
[1633095513128,0.423273,47271.0,47259.0,0.07307621]
[1633095513325,0.23919366,47271.0,47259.0,0.07307621]
[1633095513524,0.317443,47267.0,47259.0,0.07307621]
[1633095513928,0.317443,47267.0,47259.0,0.13441068]
[1633095515531,0.18357338,47275.0,47267.0,0.02090649]
[1633095515730,0.21163648,47276.0,47272.0,0.00123137]
[1633095515927,0.21163648,47276.0,47275.0,0.00120938]
[1633095516526,0.21163648,47276.0,47272.0,0.20021514]
[1633095516725,0.21163648,47276.0,47270.0,0.423144]
[1633095516928,7.252e-05,47272.0,47270.0,0.423144]
[1633095517728,7.252e-05,47272.0,47270.0,0.723144]
[1633095518527,7.252e-05,47272.0,47270.0,0.92383301]
[1633095518728,7.252e-05,47272.0,47271.0,0.20203298]
[1633095519128,7.252e-05,47272.0,47270.0,0.723144]
[1633095519531,6.044e-05,47271.0,47270.0,0.92204131]
[1633095519933,6.044e-05,47271.0,47270.0,0.723144]
[1633095523530,6.044e-05,47271.0,47270.0,0.82372322]
[1633095523731,6.044e-05,47271.0,47270.0,0.82524862]
[1633095524935,0.21163648,47276.0,47270.0,0.82524862]
[1633095525132,0.21163648,47276.0,47271.0,0.19820225]
[1633095525736,0.21163648,47276.0,47270.0,1.02571812]
[1633095526932,0.21163648,47276.0,47271.0,0.09363766]
[1633095527933,0.21163648,47276.0,47270.0,0.52685816]
[1633095528333,0.21163648,47276.0,47271.0,0.3]
[1633095528932,0.21163648,47276.0,47273.0,0.00152404]
[1633095529934,0.21163648,47276.0,47274.0,1.8678324]
[1633095530137,0.21163648,47276.0,47274.0,2.1678324]
[1633095531738,0.21163648,47276.0,47273.0,0.00152404]
[1633095531739,0.07710351,47274.0,47273.0,0.00152404]
[1633095531941,0.07710351,47274.0,47257.0,0.0005301]
[1633095531942,0.04181298,47267.0,47255.0,0.06123261]
[1633095532140,0.04181298,47267.0,47250.0,0.12246522]
[1633095532141,0.10155434,47252.0,47251.0,0.0612349]
[1633095532345,0.10155434,47252.0,47248.0,0.00022]
[1633095532346,1.10122294,47250.0,47248.0,0.00022]
[1633095532539,1.10122294,47250.0,47246.0,2.62e-06]
[1633095532540,0.3188761,47248.0,47246.0,2.62e-06]
[1633095532743,0.21967973,47247.0,47242.0,0.00022]
[1633095532940,0.00127406,47243.0,47242.0,0.00022]
[1633095533140,0.21037105,47243.0,47242.0,0.00022]
[1633095533338,0.21037105,47243.0,47242.0,0.00054658]
[1633095533939,2.28357105,47243.0,47242.0,0.00054658]
[1633095534144,0.65,47242.0,47235.0,0.00066]
[1633095534345,0.50125369,47236.0,47230.0,0.00044]
[1633095534541,0.18113137,47231.0,47230.0,0.00044]
[1633095534740,0.22953281,47231.0,47230.0,0.00022]
[1633095534941,0.22953281,47231.0,47229.0,0.00066]
[1633095535142,0.41419959,47230.0,47229.0,0.00066]
[1633095535350,0.21086921,47230.0,47226.0,0.00022]
[1633095535542,0.21086921,47230.0,47229.0,0.00015729]
[1633095535543,0.02238283,47230.0,47229.0,0.00015729]
[1633095536543,0.02786318,47230.0,47229.0,0.00015729]
[1633095536743,0.02585478,47230.0,47229.0,0.00015729]
[1633095538743,0.02585478,47230.0,47229.0,0.22335729]
[1633095538943,0.02585478,47230.0,47229.0,0.00015729]
[1633095540750,0.02462575,47230.0,47229.0,0.00015729]
[1633095541150,0.21182072,47234.0,47229.0,0.00139743]
[1633095541349,0.0186,47233.0,47229.0,0.09584326]
[1633095541550,0.0186,47233.0,47229.0,0.09568597]
[1633095541749,0.0186,47233.0,47231.0,0.2215677]
[1633095541951,0.0186,47233.0,47229.0,0.09444583]
[1633095542350,0.0186,47233.0,47231.0,0.10481359]
[1633095542550,0.0186,47233.0,47231.0,0.3]
[1633095543417,0.00127711,47232.0,47231.0,0.3]
[1633095543612,0.20004793,47232.0,47231.0,0.3]
[1633095543814,0.01987711,47232.0,47231.0,0.30013309]
[1633095544415,0.23001818,47232.0,47231.0,0.00013309]
[1633095544615,0.2367622,47232.0,47231.0,0.00013309]
[1633095544813,1.38790181,47232.0,47231.0,0.00013309]
[1633095545015,1.0956678,47232.0,47231.0,0.00013309]
[1633095545213,1.09710946,47232.0,47231.0,0.00013309]
[1633095545416,1.09775264,47232.0,47231.0,0.00013309]
[1633095546014,0.00985083,47232.0,47231.0,0.00013309]
[1633095546816,0.40985083,47232.0,47231.0,0.00013309]
[1633095547017,0.00985083,47232.0,47231.0,0.00013309]
[1633095547618,0.02845083,47232.0,47231.0,0.00013309]
[1633095549022,0.4325619,47232.0,47231.0,0.00013309]
[1633095549226,0.49732656,47232.0,47231.0,0.00013309]
[1633095549625,1.00580953,47232.0,47231.0,0.00013309]
[1633095549825,2.25580953,47232.0,47231.0,0.00013309]
[1633095550023,0.07638523,47231.0,47226.0,0.00022]
[1633095550225,0.00121409,47227.0,47226.0,0.00022]
[1633095550425,0.01981409,47227.0,47226.0,0.00022]
[1633095550624,0.01981409,47227.0,47226.0,0.0002805]
[1633095551225,0.20439519,47227.0,47226.0,0.0002805]
[1633095551625,0.70305883,47227.0,47226.0,0.0002805]
[1633095551824,0.52028216,47227.0,47226.0,0.0002805]
[1633095552026,0.70533436,47227.0,47226.0,0.0002805]
[1633095552227,0.52028216,47227.0,47226.0,0.0002805]
[1633095553425,0.70096802,47227.0,47226.0,0.0002805]
[1633095553637,0.62416802,47227.0,47226.0,0.0002805]
[1633095553836,0.62416802,47227.0,47216.0,0.00088]
[1633095553837,0.3,47219.0,47216.0,0.00088]
[1633095554032,1.38132646,47219.0,47216.0,0.00088]
[1633095554229,1.34732646,47219.0,47218.0,0.00031682]
[1633095554428,1.42964952,47219.0,47218.0,0.00031682]
[1633095554630,1.54493016,47219.0,47211.0,0.00680545]
[1633095554828,0.466,47218.0,47211.0,0.00680545]
[1633095555030,0.0186,47217.0,47211.0,0.00680545]
[1633095555435,0.0186,47217.0,47215.0,0.17780852]
[1633095555830,0.317793,47216.0,47214.0,0.3]
[1633095556034,0.0186,47215.0,47214.0,0.3]
[1633095556431,0.0186,47215.0,47214.0,0.23856006]
[1633095557234,0.22805463,47220.0,47214.0,0.23856006]
[1633095557434,0.22805463,47220.0,47215.0,0.0005301]
[1633095557435,0.22676,47220.0,47215.0,0.0005301]
[1633095557833,0.22676,47220.0,47214.0,0.23856006]
[1633095558233,0.317773,47219.0,47213.0,0.211882]
[1633095558435,0.317773,47219.0,47213.0,0.511882]
[1633095558633,0.317773,47219.0,47213.0,0.211882]
[1633095559632,0.317773,47219.0,47214.0,0.00144662]
[1633095560035,0.22676,47220.0,47214.0,0.00144662]
[1633095560431,0.22488504,47220.0,47214.0,0.00144662]
[1633095560633,0.317809,47218.0,47214.0,0.00144662]
[1633095560832,0.317809,47218.0,47215.0,0.09601372]
[1633095562240,0.09195991,47216.0,47214.0,0.00144662]
[1633095562439,0.40592058,47219.0,47214.0,0.00144662]
[1633095562634,0.3984015,47219.0,47214.0,0.00144662]
[1633095563034,0.317822,47216.0,47214.0,0.00144662]
[1633095563234,0.317822,47216.0,47215.0,0.28990704]
[1633095563432,0.317822,47216.0,47215.0,0.0917779]
[1633095563633,0.317822,47216.0,47214.0,0.00144662]
[1633095565236,0.317822,47216.0,47214.0,0.00084662]
[1633095565638,0.19190597,47215.0,47214.0,0.00084662]
[1633095566037,0.65540996,47216.0,47214.0,0.00084662]
[1633095566238,0.317777,47218.0,47214.0,0.00084662]
[1633095568243,0.317777,47218.0,47210.0,1.00088]
[1633095568244,1.95126467,47215.0,47210.0,0.69747564]
[1633095568548,1.95126467,47215.0,47209.0,0.00088]
[1633095568549,1.92354264,47210.0,47209.0,0.00088]
[1633095568741,3.20806821,47210.0,47209.0,0.00088]
[1633095568942,1.2,47208.0,47206.0,0.00088]
[1633095569145,0.0186,47208.0,47206.0,0.00088]
[1633095569741,0.5186,47208.0,47206.0,0.00088]
[1633095570541,1.40296223,47208.0,47206.0,0.00088]
[1633095571341,0.98580106,47208.0,47206.0,0.00088]
[1633095571542,1.20900106,47208.0,47206.0,0.00088]
[1633095571746,1.28178049,47208.0,47198.0,0.04559336]
[1633095571946,1.28178049,47208.0,47195.0,0.00088]
[1633095571947,1.13458605,47196.0,47195.0,0.00088]
[1633095572145,2.51600352,47196.0,47195.0,0.00088]
[1633095572342,2.51600352,47196.0,47195.0,0.00104951]
[1633095572343,3.01600352,47196.0,47195.0,0.00104951]
[1633095572547,3.01600352,47196.0,47177.0,0.222688]
[1633095572548,3.03198215,47196.0,47177.0,0.222688]
[1633095572749,3.03198215,47196.0,47168.0,0.30261586]
[1633095572750,0.27851058,47181.0,47168.0,0.30261586]
[1633095572958,1.15891292,47163.0,47159.0,0.20406904]
[1633095573156,1.15891292,47163.0,47159.0,0.00044]
[1633095573157,0.23333656,47162.0,47159.0,0.00044]
[1633095573547,0.23333656,47162.0,47161.0,0.00041196]
[1633095573548,0.27818912,47162.0,47161.0,0.00041196]
[1633095573747,1.37457074,47162.0,47158.0,0.00088]
[1633095573954,0.16623927,47149.0,47147.0,0.18182]
[1633095574150,0.05726025,47146.0,47136.0,0.00088]
[1633095574350,0.07586025,47146.0,47136.0,0.00088]
[1633095574547,0.07586025,47146.0,47140.0,0.00212583]
[1633095574750,0.07579092,47146.0,47140.0,0.21305]
[1633095574945,0.07579092,47146.0,47145.0,0.01245069]
[1633095575146,0.07579092,47146.0,47143.0,0.16639069]
[1633095575348,0.07579092,47146.0,47144.0,0.19727088]
[1633095575547,0.05719092,47146.0,47145.0,2.82544693]
[1633095576148,0.5,47159.0,47153.0,0.212098]
[1633095576349,0.5,47158.0,47157.0,0.00122906]
[1633095576854,0.20141761,47158.0,47153.0,0.212098]
[1633095577048,0.20141761,47158.0,47150.0,0.15372687]
[1633095577447,0.318252,47153.0,47150.0,0.15372687]
[1633095577648,0.5,47155.0,47150.0,0.15372687]
[1633095577850,0.5,47155.0,47152.0,0.00010908]
[1633095577851,0.27977754,47153.0,47152.0,0.00010908]
[1633095578050,0.77977754,47153.0,47150.0,0.15372687]
[1633095578450,0.19713489,47152.0,47150.0,0.15372687]
[1633095578649,0.67386702,47151.0,47150.0,0.15372687]
[1633095578847,0.34716624,47151.0,47150.0,0.15372687]
[1633095579127,0.57501634,47151.0,47150.0,0.15372687]
[1633095579246,0.15372687,47150.0,47145.0,0.00026172]
[1633095579458,0.47232687,47150.0,47145.0,0.00026172]
[1633095579650,0.53612025,47150.0,47149.0,0.00014544]
[1633095580050,0.53612025,47150.0,47143.0,0.00123436]
[1633095580051,0.67232687,47150.0,47143.0,0.00123436]
[1633095580452,0.86860209,47150.0,47143.0,0.00123436]
[1633095580653,0.318335,47148.0,47143.0,0.00123436]
[1633095580850,0.5,47144.0,47141.0,0.21790774]
[1633095581051,0.00625496,47145.0,47143.0,0.212184]
[1633095581254,0.5,47149.0,47143.0,0.83937337]
[1633095581453,0.65372687,47150.0,47143.0,0.83937337]
[1633095581454,0.16049596,47150.0,47143.0,0.83937337]
[1633095581654,0.15372687,47150.0,47143.0,7.273e-05]
[1633095581853,0.5,47144.0,47143.0,7.273e-05]
[1633095582124,0.5,47144.0,47143.0,0.07121266]
[1633095582252,0.00653741,47145.0,47143.0,7.273e-05]
[1633095582253,0.00567596,47145.0,47143.0,7.273e-05]
[1633095582452,0.15372687,47150.0,47143.0,7.273e-05]
[1633095582652,0.318295,47145.0,47144.0,0.20225461]
[1633095583051,0.318295,47145.0,47144.0,0.42978404]
[1633095583453,0.15372687,47150.0,47144.0,0.43102872]
[1633095583652,0.15372687,47150.0,47147.0,0.212138]
[1633095583855,0.15372687,47150.0,47148.0,0.2232]
[1633095584054,0.15372687,47150.0,47149.0,0.00128889]
[1633095584256,0.15372687,47150.0,47149.0,0.09031758]
[1633095584659,0.15372687,47150.0,47149.0,0.00128889]
[1633095584853,0.15372687,47150.0,47149.0,0.22448889]
[1633095585254,0.15372687,47150.0,47149.0,0.52579206]
[1633095586057,0.15372687,47150.0,47149.0,0.61510932]
[1633095586256,0.15372687,47150.0,47149.0,0.39137922]
[1633095586455,0.15372687,47150.0,47149.0,0.09137922]